fUST/lending_fUST_20240131
["ID","MTS","AMOUNT","RATE_DAILY","PERIOD"]
[313024067,1706640646159,-4152.77777555,0.000325,15]
[313024069,1706640646168,-151.0,0.0003251,2]
[313024071,1706640646177,-151.725805,0.0003252,2]
[313024073,1706640646186,-157.894736,0.00032572,2]
[313024075,1706640646195,-13472.85,0.0003287,4]
[313024077,1706640646205,-46732.6886899,0.00032877,2]
[313024079,1706640646214,-10489.68,0.00032997,2]
[313024081,1706640646223,-10489.68,0.00032997,2]
[313024083,1706640646232,-10489.68,0.00032997,2]
[313024085,1706640646241,-10489.68,0.00032997,2]
[313024087,1706640646250,-10489.68,0.00032997,2]
[313024089,1706640646259,-10489.68,0.00032997,2]
[313024091,1706640646268,-10489.68,0.00032997,2]
[313024093,1706640646277,-10489.68,0.00032997,2]
[313024095,1706640646287,-10489.68,0.00032997,2]
[313024097,1706640646296,-10489.68,0.00032997,2]
[313024099,1706640646305,-151.0,0.00032997,2]
[313024101,1706640646315,-151.0,0.00032997,2]
[313024103,1706640646324,-151.0,0.00032997,2]
[313024105,1706640646333,-392.274165,0.00032997,2]
[313024107,1706640646344,-392.274165,0.00032997,2]
[313024109,1706640646355,-1248.694555,0.00032997,2]
[313024111,1706640646364,-1248.694555,0.00032997,2]
[313024113,1706640646373,-7811.90112,0.00032997,2]
[313024115,1706640646381,-7811.90112,0.00032997,2]
[313024116,1706640646391,-151.0,0.00032997,2]
[313024118,1706640646401,-210.589811,0.00032997,2]
[313024121,1706640646411,-210.589811,0.00032997,2]
[313024122,1706640646420,-228.59183817,0.00033,2]
[313024124,1706640646430,-304.86419737,0.00033,3]
[313024126,1706640646440,-502.0,0.00033,5]
[313024128,1706640646449,-5000.0,0.00033,7]
[313024130,1706640646459,-35000.0,0.00033,7]
[313024132,1706640646468,-1500.0,0.00033,2]
[313024134,1706640646478,-690.76043168,0.00033,3]
[313024136,1706640646487,-3000.0,0.00033,14]
[313024138,1706640646496,-1611.91968625,0.00033,30]
[313024140,1706640646505,-2019.28,0.00033,6]
[313024142,1706640646514,-3819.42209576,0.00033,10]
[313024144,1706640646523,-1000.0,0.00033,33]
[313024146,1706640646534,-151.0,0.00033,2]
[313024148,1706640646543,-500.0,0.00033,7]
[313024150,1706640646552,-151.0,0.00033,2]
[313024152,1706640646561,-151.0,0.00033,2]
[313024154,1706640646570,-392.274165,0.00033,2]
[313024156,1706640646578,-392.274165,0.00033,2]
[313024158,1706640646587,-5094.225014,0.00033,2]
[313024160,1706640646597,-1248.694555,0.00033,2]
[313024162,1706640646605,-1248.694555,0.00033,2]
[313024164,1706640646615,-7811.90112,0.00033,2]
[313024166,1706640646625,-7811.90112,0.00033,2]
[313024168,1706640646634,-151.0,0.00033,2]
[313024170,1706640646643,-210.589811,0.00033,2]
[313024172,1706640646652,-210.589811,0.00033,2]
[313024174,1706640646661,-191.898186,0.00033044,2]
[313024176,1706640646670,-151.725805,0.00033044,2]
[313024178,1706640646683,-157.894736,0.00033181,2]
[313024180,1706640646692,-151.725805,0.00033206,2]
[313024182,1706640646701,-365.76009793,0.00033301,2]
[313024184,1706640646710,-150.0,0.00033499,2]
[313024186,1706640646719,-157.894736,0.0003379,2]
[313024188,1706640646729,-953.51298828,0.000338,2]
[313024191,1706640646739,-47260.7226778,0.00033956,7]
[313024193,1706640646748,-168.333219,0.00033973,2]
[313024194,1706640646757,-168.333219,0.00033973,18]
[313024197,1706640646767,-168.333219,0.00033973,35]
[313024198,1706640646777,-168.333219,0.00033973,52]
[313024200,1706640646787,-168.333219,0.00033973,69]
[313024202,1706640646796,-168.333219,0.00033973,86]
[313024204,1706640646805,-168.333219,0.00033973,103]
[313024207,1706640646814,-168.333219,0.00033973,119]
[313024209,1706640646823,-5000.0,0.00034,7]
[313024211,1706640646832,-13634.68690791,0.00034,2]
[313024213,1706640646845,-12336.7659363,0.00034,2]
[313024649,1706640858880,154.84515185,0.000176,2]
[313024650,1706641018961,24900.0,0.00019885,2]
[313024651,1706641021774,418.069462,0.00019911,2]
[313024656,1706641505664,209.034731,0.00019911,2]
[313024659,1706641542297,10438.0,0.0003,120]
[313024660,1706641572821,166.696548,0.00019622,2]
[313024738,1706641831932,-453.46449264,0.00020583,2]
[313024740,1706641831941,-260.67799851,0.00020584,2]
[313024741,1706641831950,-3035.56822944,0.00020585,2]
[313024748,1706641831988,-4935.08682297,0.00020585,2]
[313024750,1706641831997,-562.3258598,0.00020626,2]
[313024752,1706641832007,-2137.03626766,0.00020631,2]
[313024754,1706641832016,-1556.13261224,0.00020845,2]
[313024756,1706641832025,-3074.90379712,0.00020922,2]
[313024758,1706641832036,-4379.92303812,0.00020922,2]
[313024760,1706641832045,-99.76423545,0.00020933,2]
[313024762,1706641832057,-85.87901966,0.00020933,2]
[313024764,1706641832066,-155.02015262,0.0002095,2]
[313024766,1706641832076,-624.68586065,0.00021047,2]
[313024768,1706641832085,-278.20987142,0.00021047,2]
[313024770,1706641832094,-710.51208574,0.00021048,2]
[313024772,1706641832103,-257.9173374,0.00021055,2]
[313024774,1706641832112,-264.53586889,0.00021055,2]
[313024776,1706641832121,-274.5656387,0.00021055,2]
[313024794,1706641837937,-904.83318342,0.00020582,2]
[313024795,1706641837946,-1442.96904559,0.00021055,2]
[313024796,1706641837994,-388.98350675,0.00021055,2]
[313024797,1706641838004,-274.92421469,0.00021055,2]
[313024798,1706641838014,-161.19857963,0.00021055,2]
[313024799,1706641838023,-679.47851073,0.00021055,2]
[313024800,1706641838032,-155.02790186,0.00021055,2]
[313024801,1706641838041,-186.93447094,0.00021055,2]
[313024802,1706641838050,-208.56063369,0.00021055,2]
[313024803,1706641838060,-1586.35135048,0.00021055,2]
[313024804,1706641838070,-1264.51072055,0.00021056,2]
[313024805,1706641838080,-2077.00381468,0.00021056,2]
[313024806,1706641838089,-33306.69464816,0.00021056,2]
[313024807,1706641838098,-200.0,0.00021613,7]
[313024808,1706641838107,-280.0,0.00023775,7]
[313024809,1706641838117,-4013.85201876,0.00024,2]
[313024810,1706641838126,-391.0,0.00026152,15]
[313024811,1706641838136,-575.43,0.00026366,3]
[313024812,1706641838145,-1285.64647046,0.00026376,2]
[313024813,1706641838154,-5185.46909613,0.00026376,2]
[313024814,1706641838164,-2568.89624214,0.00026376,2]
[313024815,1706641838173,-4477.35342057,0.00026376,2]
[313024816,1706641838183,-201.10139586,0.00028,2]
[313024817,1706641838192,-200.0,0.00028767,15]
[313024818,1706641838201,-348.0,0.00028767,15]
[313024819,1706641838211,-16811.46235347,0.000289,2]
[313024820,1706641838220,-1959.77429776,0.00029,2]
[313024821,1706641838230,-370.04024356,0.00029,2]
[313024822,1706641838239,-2968.01159496,0.00029597,2]
[313024823,1706641838249,-155.23328726,0.0002971,3]
[313024824,1706641838260,-209.034731,0.00029867,2]
[313024825,1706641838270,-479.52,0.0002999,3]
[313024826,1706641838280,-399.6,0.0002999,3]
[313024827,1706641838290,-3340.9928411,0.0003,2]
[313024828,1706641838299,-303.3670485,0.0003,10]
[313024829,1706641838308,-2374.95091436,0.0003,2]
[313024830,1706641838317,-689.49476826,0.0003,4]
[313024831,1706641838327,-146423.90831105,0.0003,4]
[313024832,1706641838336,-244.61431091,0.0003,4]
[313024833,1706641838345,-203.20005441,0.0003,2]
[313024834,1706641838355,-154.90705577,0.0003,2]
[313024835,1706641838364,-155.0,0.0003,2]
[313024836,1706641838373,-281.0,0.0003,2]
[313024837,1706641838382,-157.894736,0.00030137,2]
[313024838,1706641838391,-3351.30374145,0.000304,5]
[313024839,1706641838400,-4742.44366424,0.000305,2]
[313024840,1706641838410,-157.894736,0.00030746,2]
[313024841,1706641838420,-412.70174143,0.00030897,2]
[313024842,1706641838429,-54929.91689518,0.00030999,3]
[313024843,1706641838438,-263518.16718362,0.00031,2]
[313024844,1706641838640,-2376.35776166,0.00031,2]
[313025014,1706641843005,-333.0,0.0002889,3]
[313025015,1706641843015,-975.06768851,0.00031,2]
[313025016,1706641843061,-5341.07366095,0.00031,2]
[313025048,1706642029308,941.30751468,0.0001895,2]
[313025061,1706642479589,209.034731,0.00020039,2]
[313025069,1706642599806,155.01395126,0.00020039,2]
[313025070,1706642617807,157.80026382,0.00020039,2]
[313025163,1706643033537,-161.25377487,0.00020956,2]
[313025165,1706643033547,-260.67799851,0.00020957,2]
[313025168,1706643033557,-155.01395126,0.00020958,2]
[313025170,1706643033566,-3750.33849076,0.00020958,2]
[313025172,1706643033576,-679.74060206,0.00020959,2]
[313025174,1706643033585,-37009.8984698,0.00020959,2]
[313025176,1706643033595,-19726.57954333,0.0002096,2]
[313025178,1706643033604,-7970.65505241,0.00020961,2]
[313025181,1706643033614,-519.93,0.00020963,3]
[313025184,1706643033623,-433.27,0.00020965,3]
[313025186,1706643033633,-903.86439662,0.00020973,2]
[313025188,1706643033642,-75730.54446052,0.00020975,2]
[313025190,1706643033651,-2003.83335234,0.00020978,2]
[313025192,1706643033661,-1586.35135048,0.00021039,2]
[313025195,1706643033670,-3845.54835849,0.00021053,2]
[313025198,1706643033680,-155.33030437,0.00021053,2]
[313025201,1706643033689,-156.30169495,0.00021053,2]
[313025204,1706643033700,-176.47754897,0.00021053,2]
[313025207,1706643033709,-309.69636368,0.00021053,2]
[313025210,1706643033719,-267.58088134,0.00021053,2]
[313025403,1706643038191,-316.47323329,0.00021053,2]
[313025404,1706643038201,-176.86265737,0.00021053,2]
[313025405,1706643038210,-155.52200796,0.00021053,2]
[313025406,1706643038220,-155.60546346,0.00021053,2]
[313025407,1706643038229,-259.27542868,0.00021053,2]
[313025408,1706643038239,-169.09579844,0.00021053,2]
[313025409,1706643038249,-200.0,0.00021053,2]
[313025410,1706643038259,-303.13985087,0.00021053,2]
[313025411,1706643038269,-1264.51072055,0.00021053,2]
[313025412,1706643038278,-208.56063369,0.00021053,2]
[313025413,1706643038288,-186.93447094,0.00021053,2]
[313025414,1706643038297,-155.02790186,0.00021053,2]
[313025415,1706643038416,-155.01860223,0.00021053,2]
[313025416,1706643038426,-155.29816914,0.00021053,2]
[313025417,1706643038435,-332.25503996,0.00021054,2]
[313025418,1706643038445,-1700.52786078,0.00021054,2]
[313025419,1706643038455,-177.09665134,0.00021055,2]
[313025420,1706643038464,-2106.51819104,0.00021055,2]
[313025421,1706643038474,-309.72125088,0.00021055,2]
[313025422,1706643038483,-715.76565283,0.00021055,2]
[313025423,1706643038493,-1243.18794346,0.00021055,2]
[313025424,1706643038502,-621.74137913,0.00021055,2]
[313025425,1706643038511,-470.19018519,0.00021055,2]
[313025426,1706643038521,-156.79522636,0.00021055,2]
[313025427,1706643038530,-262.20739186,0.00021055,2]
[313025428,1706643038539,-1367.98900414,0.00021055,2]
[313025429,1706643038549,-1198.85411505,0.00021055,2]
[313025430,1706643038558,-155.04496304,0.00021055,2]
[313025431,1706643038567,-193.54319736,0.00021055,2]
[313025432,1706643038576,-2035.34911286,0.00021055,2]
[313025433,1706643038586,-227.43519653,0.00021055,2]
[313025434,1706643038595,-14679.55896149,0.00021055,2]
[313025435,1706643038604,-500.0,0.00021055,2]
[313025436,1706643038613,-242.7024983,0.00021055,2]
[313025437,1706643038623,-163.32384567,0.00021055,2]
[313025438,1706643038632,-663.45474894,0.00021055,2]
[313025439,1706643038641,-488.62496948,0.00021055,2]
[313025440,1706643038651,-15390.37952808,0.00021055,2]
[313025441,1706643038660,-1578.24819686,0.00021055,2]
[313025442,1706643038669,-178.74538316,0.00021055,2]
[313025443,1706643038678,-233.99171594,0.00021055,2]
[313025444,1706643038687,-165.98990982,0.00021055,2]
[313025445,1706643038696,-527.37323605,0.00021055,2]
[313025446,1706643038705,-20911.81082028,0.00021056,2]
[313025447,1706643038714,-166.666666,0.00021918,2]
[313025448,1706643038724,-3972.88161015,0.00022,2]
[313025449,1706643038733,-426.44750157,0.00022,2]
[313025450,1706643038742,-2036.5412467,0.00022,2]
[313025451,1706643038752,-200.0,0.00022007,7]
[313025452,1706643038761,-166.666666,0.00022431,2]
[313025453,1706643038770,-166.666666,0.00022944,2]
[313025454,1706643038778,-1261.25015974,0.00023,2]
[313025455,1706643038788,-9950.40162057,0.00023,2]
[313025456,1706643038797,-166.666666,0.00023456,2]
[313025457,1706643038806,-166.666666,0.00023969,2]
[313025458,1706643038815,-4018.69495971,0.00024,2]
[313025459,1706643038824,-280.0,0.00024208,7]
[313025460,1706643038833,-166.666666,0.00024482,2]
[313025461,1706643038842,-200.0,0.00024658,2]
[313025462,1706643038850,-280.0,0.00024658,2]
[313025463,1706643038860,-4729.25513018,0.00025,2]
[313025464,1706643038869,-155.02635448,0.00025,2]
[313025465,1706643038883,-1828.7489345,0.00025,2]
[313025466,1706643038892,-680.48366856,0.00025,2]
[313025467,1706643038902,-7652.00570539,0.00025,2]
[313025468,1706643038911,-1009.05174413,0.00025,2]
[313025469,1706643038920,-200.0,0.00025479,2]
[313025470,1706643038929,-298.48147438,0.00026375,2]
[313025471,1706643038938,-500.0,0.00026375,2]
[313025472,1706643038948,-500.0,0.00026375,2]
[313025473,1706643038957,-500.0,0.00026375,2]
[313025474,1706643038966,-415.76505033,0.00026375,2]
[313025475,1706643038976,-160.99225998,0.00026375,2]
[313025476,1706643038985,-581.19811971,0.00026375,2]
[313025477,1706643038994,-500.0,0.00026375,2]
[313025478,1706643039003,-500.0,0.00026375,2]
[313025479,1706643039012,-500.0,0.00026375,2]
[313025480,1706643039021,-185.56595218,0.00026375,2]
[313025481,1706643039030,-236.77949922,0.00026375,2]
[313025482,1706643039039,-50000.0,0.00026376,2]
[313025483,1706643039048,-50000.0,0.00026376,2]
[313025484,1706643039057,-50000.0,0.00026376,2]
[313025485,1706643039066,-50000.0,0.00026376,2]
[313025486,1706643039080,-87366.97392153,0.00026376,2]
[313025487,1706643039089,-27584.33931667,0.00026376,2]
[313025488,1706643039098,-1296.36727403,0.00026376,2]
[313025489,1706643039107,-1992.68889469,0.00026376,2]
[313025490,1706643039116,-648.69262446,0.000264,2]
[313025491,1706643039124,-391.0,0.00026628,15]
[313025492,1706643039134,-155.0,0.00027397,2]
[313025493,1706643039145,-1000.0,0.000275,2]
[313025494,1706643039154,-1000.0,0.000275,2]
[313025495,1706643039163,-1000.0,0.000275,2]
[313025496,1706643039172,-1000.0,0.000275,2]
[313025497,1706643039182,-1000.0,0.000275,2]
[313025498,1706643039191,-1000.0,0.000275,2]
[313025499,1706643039200,-1000.0,0.000275,2]
[313025500,1706643039209,-1000.0,0.000275,2]
[313025501,1706643039219,-1000.0,0.000275,2]
[313025502,1706643039229,-621.43463122,0.0002772,2]
[313025503,1706643039239,-201.10139586,0.00028,2]
[313025504,1706643039248,-155.0,0.00028767,2]
[313025505,1706643039257,-5526.21242297,0.00028784,5]
[313025506,1706643039266,-475.94446054,0.000289,2]
[313025507,1706643039275,-370.04024356,0.00029,2]
[313025508,1706643039285,-1959.77429776,0.00029,2]
[313025509,1706643039294,-620.07173156,0.00029106,2]
[313025510,1706643039303,-200.0,0.00029291,15]
[313025511,1706643039313,-348.0,0.00029291,15]
[313025512,1706643039324,-196.9811308,0.00029315,2]
[313025513,1706643039333,-199.5795051,0.00029315,2]
[313025514,1706643039342,-3351.30374145,0.0002945,4]
[313025515,1706643039352,-155.01395126,0.0002971,3]
[313025516,1706643039361,-68064.33876538,0.00029798,2]
[313025517,1706643039370,-5000.0,0.00029856,5]
[313025518,1706643039379,-3340.9928411,0.0003,2]
[313025519,1706643039389,-2374.95091436,0.0003,2]
[313025520,1706643039399,-203.20005441,0.0003,2]
[313025521,1706643039408,-315.09375121,0.0003,4]
[313025522,1706643039417,-25077.43353461,0.0003,4]
[313025617,1706643044730,-361.06,0.0002999,3]
[313025618,1706643044739,-121346.47477644,0.0003,4]
[313025619,1706643044748,-689.49476826,0.0003,4]
[313025620,1706643044758,-303.3670485,0.0003,10]
[313025621,1706643044767,-234.0,0.0003,2]
[313025622,1706643044776,-153.0,0.00030041,2]
[313025623,1706643044784,-153.0,0.00030041,2]
[313025624,1706643044794,-153.0,0.00030041,2]
[313025625,1706643044802,-153.0,0.00030041,2]
[313025626,1706643044811,-153.0,0.00030041,2]
[313025627,1706643044820,-153.0,0.00030137,2]
[313025628,1706643044829,-153.0,0.00030137,2]
[313025629,1706643044837,-153.0,0.00030137,2]
[313025630,1706643044846,-306.0,0.00030137,2]
[313025631,1706643044855,-237.4751378,0.00030137,2]
[313025632,1706643044866,-153.0,0.00030137,2]
[313025633,1706643044875,-153.0,0.00030137,2]
[313025634,1706643044884,-153.0,0.00030137,2]
[313025635,1706643044893,-177.3061975,0.00030137,2]
[313025636,1706643044902,-153.0,0.00030137,2]
[313025637,1706643044911,-306.0,0.00030137,2]
[313025638,1706643044922,-153.0,0.00030137,2]
[313025639,1706643044930,-153.0,0.00030137,2]
[313025640,1706643044939,-153.0,0.00030137,2]
[313025641,1706643044948,-153.0,0.00030137,2]
[313025642,1706643044957,-153.0,0.00030137,2]
[313025643,1706643044966,-153.0,0.00030137,2]
[313025644,1706643044977,-153.0,0.00030137,2]
[313025645,1706643044986,-153.0,0.00030137,2]
[313025646,1706643044994,-153.0,0.00030137,2]
[313025647,1706643045004,-153.0,0.00030137,2]
[313025648,1706643045012,-307.4659568,0.00030137,2]
[313025649,1706643045022,-153.0,0.00030137,2]
[313025650,1706643045033,-199.5795051,0.00030137,2]
[313025651,1706643045044,-153.0,0.00030137,2]
[313025652,1706643045053,-153.0,0.00030137,2]
[313025653,1706643045063,-153.0,0.00030137,2]
[313025654,1706643045073,-156.2311328,0.00030137,2]
[313025655,1706643045082,-199.5795051,0.00030137,2]
[313025656,1706643045091,-199.5795051,0.00030137,2]
[313025657,1706643045100,-199.5795051,0.00030137,2]
[313025658,1706643045109,-199.5795051,0.00030137,2]
[313025659,1706643045119,-199.5795051,0.00030137,2]
[313025660,1706643045129,-199.5795051,0.00030137,2]
[313025661,1706643045139,-199.5795051,0.00030137,2]
[313025662,1706643045152,-199.5795051,0.00030137,2]
[313025663,1706643045162,-199.5795051,0.00030137,2]
[313025664,1706643045171,-153.0,0.00030137,2]
[313025665,1706643045180,-281.3626415,0.00030137,2]
[313025666,1706643045190,-153.0,0.00030137,2]
[313025667,1706643045198,-306.0,0.00030137,2]
[313025668,1706643045207,-153.0,0.00030137,2]
[313025669,1706643045217,-153.0,0.00030137,2]
[313025670,1706643045227,-153.0,0.00030137,2]
[313025671,1706643045236,-198.4801445,0.00030137,2]
[313025672,1706643045245,-153.0,0.00030137,2]
[313025673,1706643045254,-153.0,0.00030137,2]
[313025674,1706643045263,-153.0,0.00030137,2]
[313025675,1706643045272,-153.0,0.00030137,2]
[313025676,1706643045281,-153.0,0.00030137,2]
[313025677,1706643045290,-157.894736,0.00030137,2]
[313025678,1706643045299,-155.0,0.00030137,2]
[313025679,1706643045310,-153.0,0.00030178,2]
[313025680,1706643045320,-215.919795,0.00030178,2]
[313025681,1706643045328,-153.0,0.00030178,2]
[313025682,1706643045338,-153.0,0.00030178,2]
[313025683,1706643045347,-153.0,0.00030178,2]
[313025684,1706643045356,-199.5795051,0.00030178,2]
[313025685,1706643045366,-153.0,0.00030178,2]
[313025686,1706643045375,-251.1800213,0.00030178,2]
[313025687,1706643045384,-153.0,0.00030178,2]
[313025688,1706643045394,-153.0,0.00030178,2]
[313025689,1706643045403,-199.5795051,0.00030178,2]
[313025690,1706643045412,-153.0,0.00030178,2]
[313025691,1706643045422,-153.0,0.00030178,2]
[313025692,1706643045431,-153.0,0.00030178,2]
[313025693,1706643045441,-153.0,0.00030178,2]
[313025694,1706643045450,-153.0000001,0.00030178,2]
[313025695,1706643045459,-153.0,0.00030178,2]
[313025696,1706643045468,-153.0,0.00030178,2]
[313025697,1706643045478,-153.0,0.00030178,2]
[313025698,1706643045487,-199.5795051,0.00030178,2]
[313025699,1706643045496,-153.0,0.00030178,2]
[313025700,1706643045506,-153.0,0.00030178,2]
[313025701,1706643045515,-153.0,0.00030178,2]
[313025702,1706643045526,-153.0,0.00030178,2]
[313025703,1706643045536,-153.0,0.00030178,2]
[313025704,1706643045546,-153.0,0.00030178,2]
[313025705,1706643045555,-153.0,0.00030178,2]
[313025706,1706643045565,-153.0,0.00030178,2]
[313025707,1706643045575,-153.0,0.00030178,2]
[313025708,1706643045585,-153.0,0.00030178,2]
[313025709,1706643045594,-153.0,0.00030452,2]
[313025710,1706643045604,-153.0,0.00030452,2]
[313025711,1706643045613,-153.0,0.00030452,2]
[313025712,1706643045622,-153.0,0.00030452,2]
[313025714,1706643045631,-153.0,0.00030452,2]
[313025715,1706643045640,-620.00358658,0.00030561,2]
[313025716,1706643045651,-151.01208097,0.00030598,4]
[313025717,1706643045660,-157.894736,0.00030746,2]
[313025718,1706643045670,-5000.0,0.00030928,7]
[313025719,1706643045679,-213.42126249,0.00031,4]
[313025720,1706643045689,-1027.91083157,0.00031,2]
[313025721,1706643045698,-1200.0,0.00031,4]
[313025722,1706643045707,-982.82266304,0.00031,4]
[313025723,1706643045717,-376.35893675,0.00031,4]
[313025724,1706643045726,-1617.03806887,0.00031,4]
[313025725,1706643045736,-155.12478781,0.00031,4]
[313025726,1706643045745,-191.50909336,0.00031,4]
[313025727,1706643045754,-620.37329655,0.00031,4]
[313025728,1706643045764,-343.19914178,0.00031,4]
[313025729,1706643045775,-1109.98253014,0.00031,4]
[313025730,1706643045784,-938.62076377,0.00031,2]
[313025731,1706643045793,-537.44070193,0.00031,4]
[313025732,1706643045803,-155.03875969,0.00031,4]
[313025733,1706643045812,-1114.65598908,0.00031,4]
[313025734,1706643045822,-400.52132555,0.00031,4]
[313025735,1706643045831,-260596.73198044,0.00031,14]
[313025736,1706643045841,-153.0,0.00031,2]
[313025737,1706643045850,-206.40256338,0.00031,4]
[313025739,1706643045860,-153.0,0.00031,2]
[313025740,1706643045869,-153.0,0.00031,2]
[313025741,1706643045879,-153.0,0.00031,2]
[313025742,1706643045888,-684.06765609,0.00031,4]
[313025743,1706643045897,-307.2824162,0.00031,2]
[313025744,1706643045906,-153.0,0.00031,2]
[313025746,1706643045985,-234.47285412,0.00031,2]
[313025747,1706643046003,-153.0,0.00031,2]
[313025748,1706643046012,-153.0,0.00031,2]
[313025749,1706643046022,-155.20764538,0.00031,4]
[313025750,1706643046031,-153.0,0.00031,2]
[313025752,1706643046040,-1828.0659992,0.00031,2]
[313025753,1706643046050,-309.76769358,0.00031,4]
[313025755,1706643046059,-188.0,0.00031,2]
[313025757,1706643046069,-10000.0,0.00031,2]
[313025758,1706643046078,-10000.0,0.00031,2]
[313025759,1706643046087,-10000.0,0.00031,2]
[313025760,1706643046095,-151.0,0.00031207,2]
[313025761,1706643046104,-151.01208097,0.00031223,2]
[313025762,1706643046113,-157.894736,0.00031355,2]
[313025763,1706643046122,-578.0,0.000319,2]
[313025764,1706643046131,-157.894736,0.00031963,2]
[313025765,1706643046140,-321.73063375,0.00032,4]
[313025766,1706643046154,-3582.45312356,0.00032,4]
[313025767,1706643046163,-261.92632285,0.00032,4]
[313025768,1706643046172,-1536.36145825,0.00032,2]
[313025769,1706643046182,-3519.18054344,0.00032,4]
[313025770,1706643046191,-155.01395126,0.00032,4]
[313025771,1706643046201,-172.32028985,0.00032,4]
[313025772,1706643046210,-177.25672105,0.00032,4]
[313025773,1706643046221,-370.39064972,0.00032,7]
[313025774,1706643046230,-183.49258872,0.00032,7]
[313025775,1706643046239,-319.81095861,0.00032,7]
[313025777,1706643046249,-5000.0,0.00032,7]
[313025778,1706643046259,-1970.30995119,0.00032,7]
[313025779,1706643046268,-620.00017933,0.00032089,2]
[313025781,1706643046277,-500.0,0.0003216,2]
[313025782,1706643046287,-200.0,0.0003222,15]
[313025783,1706643046296,-200.0,0.0003222,15]
[313025784,1706643046305,-368.0,0.0003222,15]
[313025785,1706643046315,-151.0,0.00032414,2]
[313025787,1706643046324,-157.894736,0.00032572,2]
[313025788,1706643046333,-1000.0,0.00033,33]
[313025790,1706643046342,-234.0,0.00033,2]
[313025791,1706643046352,-234.0,0.00033,2]
[313025793,1706643046361,-157.894736,0.00033181,2]
[313025794,1706643046370,-151.0,0.00033622,2]
[313025796,1706643046379,-620.00000897,0.00033694,2]
[313025797,1706643046388,-1000.0,0.00033712,2]
[313025798,1706643046398,-1000.0,0.00033745,2]
[313025799,1706643046407,-1000.0,0.00033764,2]
[313025801,1706643046416,-1000.0,0.00033769,2]
[313025802,1706643046425,-1000.0,0.0003377,2]
[313025803,1706643046434,-1010.71957794,0.00033776,2]
[313025804,1706643046444,-1000.0,0.00033788,2]
[313025805,1706643046453,-157.894736,0.0003379,2]
[313025806,1706643046462,-1000.0,0.00033797,2]
[313025807,1706643046472,-1000.0,0.00033797,2]
[313025808,1706643046482,-1000.0,0.00033804,2]
[313025809,1706643046491,-1000.0,0.00033821,2]
[313025810,1706643046500,-413.39223728,0.00033848,2]
[313025812,1706643046510,-475.94446054,0.000339,2]
[313025814,1706643046519,-1000.0,0.00033907,2]
[313025816,1706643046529,-1000.0,0.00033912,2]
[313025818,1706643046538,-1000.0,0.00033913,2]
[313025820,1706643046547,-1000.0,0.00033923,2]
[313025822,1706643046556,-1000.0,0.00033958,2]
[313025823,1706643046565,-300.69064168,0.0003396,2]
[313025824,1706643046574,-1000.0,0.00033963,2]
[313025825,1706643046583,-1000.0,0.00033975,2]
[313025826,1706643046592,-1000.0,0.00033979,2]
[313025827,1706643046601,-3281.33362853,0.0003399,2]
[313025828,1706643046611,-25826.72561857,0.00034,2]
[313025829,1706643046619,-500.0,0.00034,7]
[313025832,1706643046628,-500.0,0.00034,2]
[313025834,1706643046637,-152.74612008,0.00034346,7]
[313025837,1706643046646,-157.894736,0.00034399,2]
[313025839,1706643046655,-5000.0,0.000345,7]
[313025841,1706643046664,-151.01208097,0.00034692,2]
[313025843,1706643046673,-250.51092087,0.00034692,2]
[313025845,1706643046682,-1255.96478908,0.00034728,12]
[313025847,1706643046691,-200.0,0.000348,4]
[313025848,1706643046701,-151.0,0.00034829,2]
[313025850,1706643046709,-42458.45,0.0003487,4]